[Event "Titled Tuesday Blitz April 18 Early 2023"]
[White "Gil Alba, Hector Luis"]
[Black "Kyaw Lay Htaik"]
[WhiteFideId "3504670"]
[BlackFideId "13002007"]
[WhiteElo "2331"]
[BlackElo "2261"]
[Result "0-1"]
[Round "07"]
[TimeControl "180+2"]
[Date "2023.04.18"]
[WhiteClock "0:00:01"]
[BlackClock "0:00:04"]

1. e4 {[%clk 0:03:00]}  c5 {[%clk 0:02:59]} 2. Nf3 {[%clk 0:02:59]}  Nc6 {[%clk 0:03:00]} 3. Bb5 {[%clk 0:02:58]}  g6 {[%clk 0:02:59]} 4. O-O {[%clk 0:02:54]}  Bg7 {[%clk 0:02:59]} 5. Re1 {[%clk 0:02:54]}  Nh6 {[%clk 0:02:58]} 6. c3 {[%clk 0:02:48]}  O-O {[%clk 0:02:56]} 7. d4 {[%clk 0:02:48]}  cxd4 {[%clk 0:02:56]} 8. cxd4 {[%clk 0:02:48]}  d6 {[%clk 0:02:56]} 9. h3 {[%clk 0:02:43]}  Qb6 {[%clk 0:02:53]} 10. Bxc6 {[%clk 0:02:39]}  bxc6 {[%clk 0:02:52]} 11. Nc3 {[%clk 0:02:39]}  f6 {[%clk 0:02:44]} 12. b3 {[%clk 0:02:34]}  Nf7 {[%clk 0:02:40]} 13. Be3 {[%clk 0:02:29]}  Qa5 {[%clk 0:02:37]} 14. Rc1 {[%clk 0:02:27]}  Bd7 {[%clk 0:02:37]} 15. Qd2 {[%clk 0:02:22]}  Rfe8 {[%clk 0:02:33]} 16. d5 {[%clk 0:02:03]}  c5 {[%clk 0:02:32]} 17. Qe2 {[%clk 0:01:58]}  Rac8 {[%clk 0:02:21]} 18. Nd2 {[%clk 0:01:52]}  Rb8 {[%clk 0:01:52]} 19. Nc4 {[%clk 0:01:47]}  Qa6 {[%clk 0:01:52]} 20. f4 {[%clk 0:01:44]}  f5 {[%clk 0:01:42]} 21. e5 {[%clk 0:01:37]}  dxe5 {[%clk 0:01:41]} 22. fxe5 {[%clk 0:01:36]}  Nxe5 {[%clk 0:01:33]} 23. Bf4 {[%clk 0:01:36]}  Nxc4 {[%clk 0:01:30]} 24. Bxb8 {[%clk 0:01:22]}  Bd4+ {[%clk 0:01:28]} 25. Kh1 {[%clk 0:01:20]}  Rxb8 {[%clk 0:01:27]} 26. bxc4 {[%clk 0:01:19]}  Bf6 {[%clk 0:01:23]} 27. Nb5 {[%clk 0:01:13]}  Bxb5 {[%clk 0:01:20]} 28. cxb5 {[%clk 0:01:13]}  Rxb5 {[%clk 0:01:18]} 29. d6 {[%clk 0:01:13]}  exd6 {[%clk 0:01:10]} 30. Qc4+ {[%clk 0:00:55]}  Kg7 {[%clk 0:01:06]} 31. Re8 {[%clk 0:00:54]}  Qb7 {[%clk 0:00:56]} 32. Rf8 {[%clk 0:00:50]}  Be5 {[%clk 0:00:53]} 33. Rg8+ {[%clk 0:00:44]}  Kf6 {[%clk 0:00:46]} 34. Qh4+ {[%clk 0:00:40]}  Ke6 {[%clk 0:00:39]} 35. Re1 {[%clk 0:00:24]}  Qf7 {[%clk 0:00:28]} 36. Qc4+ {[%clk 0:00:19]}  Kf6 {[%clk 0:00:28]} 37. Qxb5 {[%clk 0:00:15]}  Qxg8 {[%clk 0:00:26]} 38. Qa6 {[%clk 0:00:15]}  Qb8 {[%clk 0:00:22]} 39. Rd1 {[%clk 0:00:13]}  Qb6 {[%clk 0:00:21]} 40. Qc4 {[%clk 0:00:13]}  a5 {[%clk 0:00:20]} 41. Qh4+ {[%clk 0:00:13]}  Kg7 {[%clk 0:00:19]} 42. Qc4 {[%clk 0:00:13]}  Kf6 {[%clk 0:00:19]} 43. Qh4+ {[%clk 0:00:09]}  Kg7 {[%clk 0:00:18]} 44. Qc4 {[%clk 0:00:08]}  h5 {[%clk 0:00:17]} 45. a4 {[%clk 0:00:09]}  Qb4 {[%clk 0:00:17]} 46. Qe6 {[%clk 0:00:06]}  Qxa4 {[%clk 0:00:16]} 47. Rb1 {[%clk 0:00:06]}  Qc2 {[%clk 0:00:13]} 48. Qe7+ {[%clk 0:00:05]}  Kh6 {[%clk 0:00:11]} 49. Rf1 {[%clk 0:00:04]}  a4 {[%clk 0:00:07]} 50. Qf8+ {[%clk 0:00:04]}  Bg7 {[%clk 0:00:07]} 51. Qxd6 {[%clk 0:00:04]}  Qc3 {[%clk 0:00:06]} 52. Qf4+ {[%clk 0:00:02]}  Kh7 {[%clk 0:00:05]} 53. Qc7 {[%clk 0:00:01]}  a3 {[%clk 0:00:05]} 54. Qa7 {[%clk 0:00:01]}  Qb2 {[%clk 0:00:05]} 55. Rd1 {[%clk 0:00:01]}  a2 {[%clk 0:00:04]} 0-1


[Site "https://www.chess.com"]

[Event "Titled Tuesday Blitz April 18 Early 2023"]
[White "Pourkashiyan, Atousa"]
[Black "Erzhanov, Arman"]
[WhiteFideId "12502014"]
[BlackFideId "4138821"]
[WhiteElo "2228"]
[BlackElo "2138"]
[Result "0-1"]
[Round "07"]
[TimeControl "180+2"]
[Date "2023.04.18"]
[WhiteClock "0:00:05"]
[BlackClock "0:00:03"]

1. e4 {[%clk 0:03:00]}  d6 {[%clk 0:02:53]} 2. d4 {[%clk 0:03:00]}  Nf6 {[%clk 0:02:52]} 3. Nc3 {[%clk 0:03:00]}  c6 {[%clk 0:02:52]} 4. a4 {[%clk 0:03:00]}  e5 {[%clk 0:02:51]} 5. Nf3 {[%clk 0:02:59]}  Nbd7 {[%clk 0:02:50]} 6. Bc4 {[%clk 0:02:59]}  Be7 {[%clk 0:02:50]} 7. O-O {[%clk 0:02:55]}  O-O {[%clk 0:02:49]} 8. a5 {[%clk 0:02:53]}  h6 {[%clk 0:02:47]} 9. Re1 {[%clk 0:02:52]}  Re8 {[%clk 0:02:47]} 10. h3 {[%clk 0:02:51]}  Bf8 {[%clk 0:02:47]} 11. Be3 {[%clk 0:02:49]}  Qc7 {[%clk 0:02:44]} 12. Nh4 {[%clk 0:02:47]}  exd4 {[%clk 0:02:39]} 13. Bxd4 {[%clk 0:02:47]}  Ne5 {[%clk 0:02:36]} 14. Bb3 {[%clk 0:02:40]}  Be6 {[%clk 0:02:35]} 15. Bxe6 {[%clk 0:02:38]}  Rxe6 {[%clk 0:02:32]} 16. Nf5 {[%clk 0:02:37]}  g6 {[%clk 0:02:24]} 17. Ne3 {[%clk 0:02:17]}  h5 {[%clk 0:02:08]} 18. f4 {[%clk 0:02:13]}  Ned7 {[%clk 0:02:07]} 19. f5 {[%clk 0:02:14]}  Ree8 {[%clk 0:02:02]} 20. fxg6 {[%clk 0:02:12]}  fxg6 {[%clk 0:02:03]} 21. Qf3 {[%clk 0:02:03]}  Bg7 {[%clk 0:02:01]} 22. Qg3 {[%clk 0:01:56]}  Kh7 {[%clk 0:02:00]} 23. Rf1 {[%clk 0:01:47]}  Ne5 {[%clk 0:01:09]} 24. Rf2 {[%clk 0:01:35]}  Rf8 {[%clk 0:01:01]} 25. Raf1 {[%clk 0:01:34]}  Rae8 {[%clk 0:01:00]} 26. Bxa7 {[%clk 0:01:30]}  Qxa5 {[%clk 0:00:57]} 27. Bd4 {[%clk 0:01:30]}  Qb4 {[%clk 0:00:55]} 28. Bxe5 {[%clk 0:00:57]}  Rxe5 {[%clk 0:00:52]} 29. Ned1 {[%clk 0:00:55]}  Qd4 {[%clk 0:00:39]} 30. Qd3 {[%clk 0:00:55]}  Qc5 {[%clk 0:00:33]} 31. Ne3 {[%clk 0:00:47]}  Re6 {[%clk 0:00:27]} 32. Kh1 {[%clk 0:00:40]}  Rfe8 {[%clk 0:00:28]} 33. Nc4 {[%clk 0:00:35]}  b5 {[%clk 0:00:22]} 34. Nd2 {[%clk 0:00:35]}  b4 {[%clk 0:00:21]} 35. Na4 {[%clk 0:00:36]}  Qa5 {[%clk 0:00:19]} 36. b3 {[%clk 0:00:36]}  Nxe4 {[%clk 0:00:16]} 37. Nxe4 {[%clk 0:00:36]}  Rxe4 {[%clk 0:00:16]} 38. Qxd6 {[%clk 0:00:33]}  R4e6 {[%clk 0:00:16]} 39. Qd3 {[%clk 0:00:28]}  Rd8 {[%clk 0:00:15]} 40. Qc4 {[%clk 0:00:25]}  Re7 {[%clk 0:00:04]} 41. Rf7 {[%clk 0:00:21]}  Rdd7 {[%clk 0:00:03]} 42. Rxe7 {[%clk 0:00:20]}  Rxe7 {[%clk 0:00:04]} 43. Qxc6 {[%clk 0:00:21]}  Qe5 {[%clk 0:00:05]} 44. Nc5 {[%clk 0:00:18]}  Rc7 {[%clk 0:00:03]} 45. Qe4 {[%clk 0:00:14]}  Qxc5 {[%clk 0:00:03]} 46. Re1 {[%clk 0:00:12]}  Qd4 {[%clk 0:00:02]} 47. Qf3 {[%clk 0:00:11]}  Rd7 {[%clk 0:00:03]} 48. Rf1 {[%clk 0:00:11]}  Qe5 {[%clk 0:00:03]} 49. Qc6 {[%clk 0:00:10]}  Re7 {[%clk 0:00:03]} 50. Rd1 {[%clk 0:00:10]}  Re6 {[%clk 0:00:03]} 51. Qd7 {[%clk 0:00:10]}  Qe2 {[%clk 0:00:03]} 52. Qd5 {[%clk 0:00:09]}  Re5 {[%clk 0:00:03]} 53. Qd7 {[%clk 0:00:08]}  Re7 {[%clk 0:00:03]} 54. Qd5 {[%clk 0:00:08]}  Qe5 {[%clk 0:00:04]} 55. Qd3 {[%clk 0:00:08]}  Qf4 {[%clk 0:00:04]} 56. Rg1 {[%clk 0:00:07]}  Be5 {[%clk 0:00:03]} 57. g3 {[%clk 0:00:07]}  Qf2 {[%clk 0:00:03]} 58. Rg2 {[%clk 0:00:07]}  Qe1+ {[%clk 0:00:03]} 59. Kh2 {[%clk 0:00:07]}  Qc3 {[%clk 0:00:03]} 60. Qd5 {[%clk 0:00:06]}  h4 {[%clk 0:00:03]} 61. Qf3 {[%clk 0:00:05]}  hxg3+ {[%clk 0:00:03]} 62. Rxg3 {[%clk 0:00:05]}  Bxg3+ {[%clk 0:00:03]} 63. Kxg3 {[%clk 0:00:05]}  Re3 {[%clk 0:00:03]} 0-1


[Site "https://www.chess.com"]

[Event "Titled Tuesday Blitz April 18 Early 2023"]
[White "Baches Garcia, Guillermo"]
[Black "Jaivardhan Raj"]
[WhiteFideId "2209764"]
[BlackFideId "25744437"]
[WhiteElo "2466"]
[BlackElo "1772"]
[Result "1-0"]
[Round "07"]
[TimeControl "180+2"]
[Date "2023.04.18"]
[WhiteClock "0:01:17"]
[BlackClock "0:01:18"]

1. e4 {[%clk 0:02:57]}  c5 {[%clk 0:02:59]} 2. Nf3 {[%clk 0:02:57]}  e6 {[%clk 0:02:59]} 3. d4 {[%clk 0:02:57]}  cxd4 {[%clk 0:03:00]} 4. Nxd4 {[%clk 0:02:58]}  Nc6 {[%clk 0:03:00]} 5. Nc3 {[%clk 0:02:58]}  a6 {[%clk 0:03:00]} 6. Be3 {[%clk 0:02:56]}  Qc7 {[%clk 0:03:01]} 7. g4 {[%clk 0:02:56]}  Bb4 {[%clk 0:02:59]} 8. Nxc6 {[%clk 0:02:49]}  Qxc6 {[%clk 0:02:56]} 9. Qd4 {[%clk 0:02:47]}  Bxc3+ {[%clk 0:02:56]} 10. bxc3 {[%clk 0:02:46]}  Nf6 {[%clk 0:02:52]} 11. f3 {[%clk 0:02:35]}  d6 {[%clk 0:02:41]} 12. g5 {[%clk 0:02:16]}  e5 {[%clk 0:02:39]} 13. Qc4 {[%clk 0:02:03]}  Qxc4 {[%clk 0:02:28]} 14. Bxc4 {[%clk 0:02:03]}  Nd7 {[%clk 0:02:27]} 15. O-O-O {[%clk 0:01:55]}  Ke7 {[%clk 0:02:25]} 16. Rd2 {[%clk 0:01:51]}  Rd8 {[%clk 0:02:15]} 17. Rhd1 {[%clk 0:01:45]}  Nf8 {[%clk 0:02:13]} 18. Bb6 {[%clk 0:01:45]}  Rd7 {[%clk 0:02:06]} 19. Bb3 {[%clk 0:01:44]}  Ne6 {[%clk 0:02:04]} 20. Ba4 {[%clk 0:01:41]}  Nxg5 {[%clk 0:01:49]} 21. Bxd7 {[%clk 0:01:34]}  Bxd7 {[%clk 0:01:46]} 22. Rxd6 {[%clk 0:01:34]}  Be6 {[%clk 0:01:29]} 23. Rd8 {[%clk 0:01:27]}  Bc8 {[%clk 0:01:22]} 24. Rh8 {[%clk 0:01:17]}  Nxf3 {[%clk 0:01:18]} 25. Rdd8 {[%clk 0:01:17]} 1-0


[Site "https://www.chess.com"]

[Event "Titled Tuesday Blitz April 18 Early 2023"]
[White "Weetik, Vjacheslav"]
[Black "Ansh M Shah"]
[WhiteFideId "4153472"]
[BlackFideId "25033379"]
[WhiteElo "2469"]
[BlackElo "2084"]
[Result "1-0"]
[Round "07"]
[TimeControl "180+2"]
[Date "2023.04.18"]
[WhiteClock "0:00:15"]
[BlackClock "0:00:03"]

1. d4 {[%clk 0:02:59]}  Nf6 {[%clk 0:02:54]} 2. Bf4 {[%clk 0:02:59]}  e6 {[%clk 0:02:55]} 3. e3 {[%clk 0:02:58]}  c5 {[%clk 0:02:55]} 4. c3 {[%clk 0:02:58]}  Qb6 {[%clk 0:02:56]} 5. Qb3 {[%clk 0:02:58]}  d5 {[%clk 0:02:54]} 6. Nd2 {[%clk 0:02:58]}  h6 {[%clk 0:02:45]} 7. h3 {[%clk 0:02:53]}  Nc6 {[%clk 0:02:45]} 8. Ngf3 {[%clk 0:02:51]}  Be7 {[%clk 0:02:43]} 9. Be2 {[%clk 0:02:43]}  c4 {[%clk 0:02:38]} 10. Qc2 {[%clk 0:02:43]}  Bd7 {[%clk 0:02:32]} 11. b3 {[%clk 0:02:41]}  cxb3 {[%clk 0:02:31]} 12. axb3 {[%clk 0:02:42]}  Rc8 {[%clk 0:02:29]} 13. O-O {[%clk 0:02:40]}  O-O {[%clk 0:02:03]} 14. Rfc1 {[%clk 0:02:38]}  Nb4 {[%clk 0:01:47]} 15. Qb1 {[%clk 0:02:34]}  Nc6 {[%clk 0:01:47]} 16. c4 {[%clk 0:02:29]}  Nb4 {[%clk 0:01:31]} 17. c5 {[%clk 0:02:29]}  Qd8 {[%clk 0:01:27]} 18. Rxa7 {[%clk 0:02:28]}  b6 {[%clk 0:01:22]} 19. cxb6 {[%clk 0:01:53]}  Qxb6 {[%clk 0:01:21]} 20. Ra1 {[%clk 0:01:44]}  Rxc1+ {[%clk 0:01:14]} 21. Qxc1 {[%clk 0:01:45]}  Rc8 {[%clk 0:01:14]} 22. Qf1 {[%clk 0:01:33]}  Ne4 {[%clk 0:00:47]} 23. Nxe4 {[%clk 0:01:31]}  dxe4 {[%clk 0:00:48]} 24. Ne5 {[%clk 0:01:32]}  Be8 {[%clk 0:00:44]} 25. Bc4 {[%clk 0:01:28]}  Bf6 {[%clk 0:00:37]} 26. Qd1 {[%clk 0:01:16]}  Bxe5 {[%clk 0:00:30]} 27. Bxe5 {[%clk 0:01:15]}  Bb5 {[%clk 0:00:31]} 28. Qg4 {[%clk 0:01:13]}  g6 {[%clk 0:00:28]} 29. Qf4 {[%clk 0:01:07]}  Kf8 {[%clk 0:00:05]} 30. Bd6+ {[%clk 0:00:38]}  Kg8 {[%clk 0:00:04]} 31. Bc5 {[%clk 0:00:36]}  Qb7 {[%clk 0:00:01]} 32. Ra7 {[%clk 0:00:33]}  Qxa7 {[%clk 0:00:01]} 33. Bxa7 {[%clk 0:00:33]}  Bxc4 {[%clk 0:00:02]} 34. bxc4 {[%clk 0:00:31]}  Rxc4 {[%clk 0:00:03]} 35. Qb8+ {[%clk 0:00:24]}  Kg7 {[%clk 0:00:03]} 36. Qe5+ {[%clk 0:00:24]}  Kg8 {[%clk 0:00:03]} 37. Qxe4 {[%clk 0:00:19]}  Nd5 {[%clk 0:00:01]} 38. Bc5 {[%clk 0:00:17]}  Rc1+ {[%clk 0:00:02]} 39. Kh2 {[%clk 0:00:17]}  Nc3 {[%clk 0:00:03]} 40. Qf4 {[%clk 0:00:15]}  Nd5 {[%clk 0:00:03]} 41. Qxh6 {[%clk 0:00:15]}  Rc2 {[%clk 0:00:02]} 42. Qf8+ {[%clk 0:00:15]}  Kh7 {[%clk 0:00:02]} 43. Qxf7+ {[%clk 0:00:15]}  Kh6 {[%clk 0:00:03]} 44. Bf8+ {[%clk 0:00:15]}  Kg5 {[%clk 0:00:03]} 45. f4+ {[%clk 0:00:15]}  Kh5 {[%clk 0:00:03]} 46. Qh7# {[%clk 0:00:15]} 1-0


[Site "https://www.chess.com"]

[Event "Titled Tuesday Blitz April 18 Early 2023"]
[White "brm72"]
[Black "Kula, Robert"]
[BlackFideId "1101218"]
[WhiteElo "2635"]
[BlackElo "2180"]
[Result "0-1"]
[Round "07"]
[TimeControl "180+2"]
[Date "2023.04.18"]
[WhiteClock "0:00:06"]
[BlackClock "0:00:01"]

1. d4 {[%clk 0:03:00]}  d5 {[%clk 0:02:36]} 2. c4 {[%clk 0:03:00]}  c6 {[%clk 0:02:36]} 3. Nf3 {[%clk 0:02:44]}  Nf6 {[%clk 0:02:35]} 4. g3 {[%clk 0:02:44]}  Bf5 {[%clk 0:02:34]} 5. Bg2 {[%clk 0:02:39]}  e6 {[%clk 0:02:34]} 6. Nc3 {[%clk 0:02:33]}  Nbd7 {[%clk 0:02:33]} 7. Nh4 {[%clk 0:02:27]}  Bg6 {[%clk 0:02:31]} 8. Nxg6 {[%clk 0:02:25]}  hxg6 {[%clk 0:02:31]} 9. Qd3 {[%clk 0:02:20]}  Bd6 {[%clk 0:02:29]} 10. O-O {[%clk 0:02:19]}  Qc7 {[%clk 0:02:28]} 11. c5 {[%clk 0:02:11]}  Be7 {[%clk 0:02:27]} 12. Bf4 {[%clk 0:02:11]}  Qd8 {[%clk 0:02:26]} 13. b4 {[%clk 0:02:08]}  Nh5 {[%clk 0:02:25]} 14. Bd2 {[%clk 0:02:06]}  e5 {[%clk 0:02:24]} 15. e3 {[%clk 0:02:01]}  e4 {[%clk 0:02:24]} 16. Qe2 {[%clk 0:01:58]}  a6 {[%clk 0:02:22]} 17. a4 {[%clk 0:01:58]}  f5 {[%clk 0:02:20]} 18. b5 {[%clk 0:01:58]}  axb5 {[%clk 0:02:19]} 19. axb5 {[%clk 0:01:59]}  O-O {[%clk 0:02:18]} 20. b6 {[%clk 0:01:56]}  Ndf6 {[%clk 0:01:59]} 21. Ra7 {[%clk 0:01:55]}  Qd7 {[%clk 0:01:52]} 22. Rfa1 {[%clk 0:01:53]}  Rab8 {[%clk 0:01:52]} 23. Bf1 {[%clk 0:01:19]}  g5 {[%clk 0:01:45]} 24. Qd1 {[%clk 0:01:12]}  g4 {[%clk 0:01:44]} 25. R1a4 {[%clk 0:01:02]}  Nh7 {[%clk 0:01:42]} 26. Qa1 {[%clk 0:01:01]}  Ng5 {[%clk 0:01:41]} 27. Bg2 {[%clk 0:00:56]}  Nf6 {[%clk 0:01:35]} 28. Ra8 {[%clk 0:00:55]}  Qc8 {[%clk 0:01:06]} 29. Rxb8 {[%clk 0:00:52]}  Qxb8 {[%clk 0:01:06]} 30. Ra7 {[%clk 0:00:52]}  Nf3+ {[%clk 0:01:01]} 31. Bxf3 {[%clk 0:00:50]}  gxf3 {[%clk 0:01:01]} 32. Kf1 {[%clk 0:00:32]}  g5 {[%clk 0:01:00]} 33. h3 {[%clk 0:00:31]}  Kf7 {[%clk 0:01:00]} 34. Ke1 {[%clk 0:00:23]}  Rh8 {[%clk 0:01:00]} 35. Kd1 {[%clk 0:00:22]}  Qc8 {[%clk 0:00:45]} 36. Kc2 {[%clk 0:00:19]}  Rxh3 {[%clk 0:00:40]} 37. Ra8 {[%clk 0:00:19]}  Qd7 {[%clk 0:00:40]} 38. Qa7 {[%clk 0:00:20]}  Rh2 {[%clk 0:00:39]} 39. Qb8 {[%clk 0:00:19]}  Rxf2 {[%clk 0:00:35]} 40. Ra7 {[%clk 0:00:19]}  f4 {[%clk 0:00:34]} 41. gxf4 {[%clk 0:00:17]}  gxf4 {[%clk 0:00:34]} 42. Qxf4 {[%clk 0:00:18]}  Rg2 {[%clk 0:00:14]} 43. Nd1 {[%clk 0:00:18]}  Qg4 {[%clk 0:00:11]} 44. Qc7 {[%clk 0:00:11]}  f2 {[%clk 0:00:08]} 45. Nxf2 {[%clk 0:00:09]}  Rxf2 {[%clk 0:00:07]} 46. Rxb7 {[%clk 0:00:10]}  Qe6 {[%clk 0:00:06]} 47. Qg3 {[%clk 0:00:10]}  Rf3 {[%clk 0:00:06]} 48. Qg5 {[%clk 0:00:09]}  Qc8 {[%clk 0:00:05]} 49. Rc7 {[%clk 0:00:09]}  Qa6 {[%clk 0:00:05]} 50. Bc3 {[%clk 0:00:04]}  Qa2+ {[%clk 0:00:05]} 51. Kd1 {[%clk 0:00:02]}  Rf1+ {[%clk 0:00:04]} 52. Be1 {[%clk 0:00:03]}  Qb1+ {[%clk 0:00:03]} 53. Kd2 {[%clk 0:00:04]}  Qxe1+ {[%clk 0:00:03]} 54. Kc2 {[%clk 0:00:05]}  Qb1+ {[%clk 0:00:03]} 55. Kc3 {[%clk 0:00:05]}  Rc1+ {[%clk 0:00:01]} 56. Kd2 {[%clk 0:00:06]}  Qc2# {[%clk 0:00:01]} 0-1


[Site "https://www.chess.com"]

[Event "Titled Tuesday Blitz April 18 Early 2023"]
[White "Feinig, Mario"]
[Black "Fiorito, Francisco"]
[WhiteFideId "1618113"]
[BlackFideId "180165"]
[WhiteElo "2096"]
[BlackElo "2341"]
[Result "0-1"]
[Round "07"]
[TimeControl "180+2"]
[Date "2023.04.18"]
[WhiteClock "0:00:13"]
[BlackClock "0:00:24"]

1. e4 {[%clk 0:03:00]}  c5 {[%clk 0:02:59]} 2. Nf3 {[%clk 0:03:01]}  Nc6 {[%clk 0:02:59]} 3. Bb5 {[%clk 0:03:01]}  g6 {[%clk 0:02:58]} 4. O-O {[%clk 0:03:01]}  Bg7 {[%clk 0:02:58]} 5. Re1 {[%clk 0:03:02]}  Nf6 {[%clk 0:02:57]} 6. e5 {[%clk 0:03:02]}  Nd5 {[%clk 0:02:57]} 7. Nc3 {[%clk 0:03:03]}  Nc7 {[%clk 0:02:55]} 8. Bxc6 {[%clk 0:03:04]}  dxc6 {[%clk 0:02:56]} 9. Ne4 {[%clk 0:03:04]}  b6 {[%clk 0:02:57]} 10. h3 {[%clk 0:03:04]}  O-O {[%clk 0:02:57]} 11. d3 {[%clk 0:03:03]}  h6 {[%clk 0:02:57]} 12. a4 {[%clk 0:03:01]}  a5 {[%clk 0:02:57]} 13. Be3 {[%clk 0:03:02]}  Be6 {[%clk 0:02:57]} 14. Qd2 {[%clk 0:03:02]}  Nd5 {[%clk 0:02:58]} 15. Bxh6 {[%clk 0:03:00]}  Nb4 {[%clk 0:02:46]} 16. Bxg7 {[%clk 0:02:34]}  Kxg7 {[%clk 0:02:47]} 17. Neg5 {[%clk 0:02:24]}  Qd7 {[%clk 0:02:47]} 18. Nxe6+ {[%clk 0:02:22]}  Qxe6 {[%clk 0:02:47]} 19. c3 {[%clk 0:02:17]}  Nd5 {[%clk 0:02:44]} 20. Ng5 {[%clk 0:02:17]}  Qf5 {[%clk 0:02:44]} 21. e6 {[%clk 0:02:09]}  f6 {[%clk 0:02:44]} 22. Nf7 {[%clk 0:02:07]}  Nf4 {[%clk 0:02:36]} 23. Re4 {[%clk 0:01:57]}  Nxe6 {[%clk 0:02:26]} 24. Nh6 {[%clk 0:01:54]}  Qd5 {[%clk 0:02:24]} 25. Rae1 {[%clk 0:01:54]}  Ng5 {[%clk 0:02:22]} 26. Ng4 {[%clk 0:01:33]}  e5 {[%clk 0:01:24]} 27. Rxe5 {[%clk 0:01:32]}  fxe5 {[%clk 0:01:22]} 28. Rxe5 {[%clk 0:01:33]}  Qxe5 {[%clk 0:00:55]} 29. Nxe5 {[%clk 0:01:32]}  Nf7 {[%clk 0:00:56]} 30. Ng4 {[%clk 0:01:23]}  Rae8 {[%clk 0:00:55]} 31. Qf4 {[%clk 0:01:20]}  Re6 {[%clk 0:00:54]} 32. d4 {[%clk 0:00:57]}  Nd6 {[%clk 0:00:19]} 33. Qh6+ {[%clk 0:00:51]}  Kg8 {[%clk 0:00:20]} 34. dxc5 {[%clk 0:00:36]}  bxc5 {[%clk 0:00:19]} 35. f3 {[%clk 0:00:11]}  Nf5 {[%clk 0:00:20]} 36. Qf4 {[%clk 0:00:07]}  Kg7 {[%clk 0:00:19]} 37. Qc4 {[%clk 0:00:06]}  Re1+ {[%clk 0:00:19]} 38. Kh2 {[%clk 0:00:06]}  Rd8 {[%clk 0:00:15]} 39. Qxc5 {[%clk 0:00:05]}  Rdd1 {[%clk 0:00:16]} 40. Nf2 {[%clk 0:00:02]}  Rd2 {[%clk 0:00:14]} 41. Qa7+ {[%clk 0:00:01]}  Kh6 {[%clk 0:00:14]} 42. g4 {[%clk 0:00:02]}  Ree2 {[%clk 0:00:13]} 43. gxf5 {[%clk 0:00:01]}  Rxf2+ {[%clk 0:00:13]} 44. Kg3 {[%clk 0:00:02]}  Rg2+ {[%clk 0:00:11]} 45. Kf4 {[%clk 0:00:02]}  g5+ {[%clk 0:00:12]} 46. Ke4 {[%clk 0:00:02]}  Rge2+ {[%clk 0:00:12]} 47. Qe3 {[%clk 0:00:01]}  Rxe3+ {[%clk 0:00:13]} 48. Kxe3 {[%clk 0:00:02]}  Rxb2 {[%clk 0:00:13]} 49. f6 {[%clk 0:00:03]}  Kg6 {[%clk 0:00:13]} 50. f7 {[%clk 0:00:04]}  Kxf7 {[%clk 0:00:14]} 51. Kd4 {[%clk 0:00:05]}  Ra2 {[%clk 0:00:14]} 52. Kc5 {[%clk 0:00:06]}  Rxa4 {[%clk 0:00:15]} 53. Kxc6 {[%clk 0:00:06]}  Rc4+ {[%clk 0:00:16]} 54. Kb5 {[%clk 0:00:07]}  Rxc3 {[%clk 0:00:17]} 55. Kxa5 {[%clk 0:00:08]}  Rxf3 {[%clk 0:00:17]} 56. h4 {[%clk 0:00:08]}  gxh4 {[%clk 0:00:18]} 57. Kb5 {[%clk 0:00:08]}  h3 {[%clk 0:00:19]} 58. Kc5 {[%clk 0:00:09]}  h2 {[%clk 0:00:20]} 59. Kb6 {[%clk 0:00:10]}  h1=Q {[%clk 0:00:21]} 60. Kb7 {[%clk 0:00:11]}  Rf2+ {[%clk 0:00:21]} 61. Kc8 {[%clk 0:00:12]}  Qe1 {[%clk 0:00:22]} 62. Kd8 {[%clk 0:00:13]}  Rd2+ {[%clk 0:00:23]} 63. Kc8 {[%clk 0:00:13]}  Qc1+ {[%clk 0:00:23]} 64. Kb8 {[%clk 0:00:13]}  Rb2+ {[%clk 0:00:24]} 0-1


[Site "https://www.chess.com"]

[Event "Titled Tuesday Blitz April 18 Early 2023"]
[White "Garrido, Denis"]
[Black "Saravana, Krishnan P."]
[WhiteFideId "601217"]
[BlackFideId "5018382"]
[WhiteElo "2324"]
[BlackElo "2189"]
[Result "0-1"]
[Round "07"]
[TimeControl "180+2"]
[Date "2023.04.18"]
[WhiteClock "0:00:18"]
[BlackClock "0:00:48"]

1. d4 {[%clk 0:03:00]}  d5 {[%clk 0:02:56]} 2. c4 {[%clk 0:03:00]}  c6 {[%clk 0:02:55]} 3. Nc3 {[%clk 0:02:59]}  Nf6 {[%clk 0:02:54]} 4. Nf3 {[%clk 0:02:59]}  a6 {[%clk 0:02:44]} 5. cxd5 {[%clk 0:02:54]}  cxd5 {[%clk 0:02:43]} 6. Bf4 {[%clk 0:02:54]}  Nc6 {[%clk 0:02:41]} 7. e3 {[%clk 0:02:53]}  Bg4 {[%clk 0:02:40]} 8. Rc1 {[%clk 0:02:52]}  e6 {[%clk 0:02:38]} 9. Bd3 {[%clk 0:02:51]}  Bd6 {[%clk 0:02:37]} 10. Bxd6 {[%clk 0:02:50]}  Qxd6 {[%clk 0:02:37]} 11. O-O {[%clk 0:02:51]}  O-O {[%clk 0:02:37]} 12. Be2 {[%clk 0:02:47]}  Rac8 {[%clk 0:02:33]} 13. Qb3 {[%clk 0:02:44]}  b5 {[%clk 0:02:24]} 14. a4 {[%clk 0:02:36]}  Na5 {[%clk 0:02:17]} 15. Qd1 {[%clk 0:02:25]}  b4 {[%clk 0:02:11]} 16. Nb1 {[%clk 0:02:25]}  Ne4 {[%clk 0:01:55]} 17. Nbd2 {[%clk 0:02:13]}  f5 {[%clk 0:01:48]} 18. Re1 {[%clk 0:01:44]}  Nxd2 {[%clk 0:01:29]} 19. Nxd2 {[%clk 0:01:40]}  Bxe2 {[%clk 0:01:28]} 20. Qxe2 {[%clk 0:01:39]}  Rfd8 {[%clk 0:01:24]} 21. g3 {[%clk 0:01:32]}  h6 {[%clk 0:01:21]} 22. Qd3 {[%clk 0:01:24]}  Qb6 {[%clk 0:01:18]} 23. Kg2 {[%clk 0:01:07]}  Nb7 {[%clk 0:01:16]} 24. Nb3 {[%clk 0:01:04]}  Kf7 {[%clk 0:01:05]} 25. Kf3 {[%clk 0:00:59]}  Nd6 {[%clk 0:01:00]} 26. Nc5 {[%clk 0:00:58]}  Ne4 {[%clk 0:01:00]} 27. g4 {[%clk 0:00:47]}  fxg4+ {[%clk 0:00:58]} 28. Kg2 {[%clk 0:00:46]}  Nxc5 {[%clk 0:00:55]} 29. dxc5 {[%clk 0:00:46]}  Rxc5 {[%clk 0:00:55]} 30. Qd4 {[%clk 0:00:39]}  Rdc8 {[%clk 0:00:55]} 31. Rxc5 {[%clk 0:00:39]}  Qxc5 {[%clk 0:00:53]} 32. Qxg4 {[%clk 0:00:38]}  Qc4 {[%clk 0:00:53]} 33. Qh5+ {[%clk 0:00:36]}  Kg8 {[%clk 0:00:52]} 34. Rd1 {[%clk 0:00:22]}  Rf8 {[%clk 0:00:49]} 35. Qe5 {[%clk 0:00:18]}  Qg4+ {[%clk 0:00:48]} 0-1


[Site "https://www.chess.com"]